bitfinex/quotes_ETHUSD_20250804
["timestamp","ask_amount","ask_price","bid_price","bid_amount"]
[1754274183285,5.2946,3545.7,3545.5,0.1408]
[1754274183467,5.2946,3545.7,3545.5,2.96121621]
[1754274184069,4.829,3545.7,3545.5,2.96121621]
[1754274184405,4.829,3545.7,3545.5,0.1408]
[1754274184406,0.4656,3545.6,3545.5,0.1408]
[1754274184706,5.2926,3545.6,3545.5,0.1408]
[1754274186806,5.2906,3545.6,3545.5,0.1408]
[1754274187007,5.7692,3545.6,3545.5,0.1408]
[1754274189567,4.825,3545.6,3545.5,0.1408]
[1754274189781,4.83,3545.6,3545.5,0.1408]
[1754274190084,4.83,3545.6,3545.5,2.96127666]
[1754274190283,0.001,3545.7,3545.5,2.96127666]
[1754274190284,0.001,3545.7,3545.6,2.82039711]
[1754274190478,4.827,3545.7,3545.6,2.82039711]
[1754274191128,4.827,3545.7,3545.5,0.1408]
[1754274191129,4.827,3545.7,3545.5,2.96125113]
[1754274191433,4.827,3545.7,3545.5,2.96126145]
[1754274191633,4.827,3545.7,3545.5,0.1408]
[1754274191836,5.3056,3545.7,3545.5,0.1408]
[1754274191991,0.4656,3545.6,3545.5,0.1408]
[1754274192329,0.4656,3545.6,3545.5,2.96127666]
[1754274192530,0.001,3545.7,3545.6,2.82039711]
[1754274192831,4.831,3545.7,3545.5,2.96125249]
[1754274193779,4.831,3545.7,3545.5,0.1408]
[1754274194012,0.9442,3545.6,3545.5,0.1408]
[1754274194428,5.7742,3545.6,3545.5,0.1408]
[1754274195421,0.9442,3545.6,3545.5,0.1408]
[1754274195603,5.2956,3545.6,3545.5,0.1408]
[1754274195809,5.7742,3545.6,3545.5,0.1408]
[1754274198546,5.7742,3545.6,3544.5,0.4884]
[1754274198547,5.7742,3545.6,3544.5,2.82123947]
[1754274198710,5.7742,3545.6,3545.0,0.1408]
[1754274198711,4.9708,3545.6,3545.0,0.1408]
[1754274198911,0.9442,3545.5,3545.0,0.1408]
[1754274199121,4.9708,3545.6,3545.0,0.1408]
[1754274199416,0.9442,3545.4,3545.0,0.1408]
[1754274199618,4.826,3545.3,3545.0,0.1408]
[1754274200023,0.9442,3545.2,3545.0,0.1408]
[1754274200754,0.1408,3545.6,3545.0,0.1408]
[1754274201045,4.826,3545.5,3545.1,2.82076777]
[1754274201247,4.826,3545.5,3545.0,2.8208549]
[1754274201419,0.9442,3545.4,3545.0,2.8208549]
[1754274201822,0.9442,3545.4,3545.3,0.1408]
[1754274202656,4.828,3545.4,3545.3,0.1408]
[1754274203038,5.2936,3545.4,3545.3,0.1408]
[1754274203238,0.001,3545.7,3545.3,2.96141583]
[1754274203553,4.827,3545.6,3545.3,2.96141583]
[1754274203725,4.827,3545.6,3545.3,2.82061583]
[1754274203931,0.001,3545.7,3545.5,0.1408]
[1754274204163,4.826,3545.6,3545.5,0.1408]
[1754274204526,4.826,3545.6,3545.5,2.96127666]
[1754274204764,4.826,3545.6,3545.5,0.1408]
[1754274205262,0.001,3545.7,3545.5,2.96127666]
[1754274205468,0.001,3545.7,3545.5,0.1408]
[1754274205469,4.825,3545.6,3545.5,0.1408]
[1754274205654,5.7692,3545.6,3545.5,0.1408]
[1754274206000,5.7702,3545.6,3545.5,0.1408]
[1754274207081,5.7702,3545.6,3545.3,0.1408]
[1754274207373,0.9442,3545.5,3545.3,0.1408]
[1754274207729,0.001,3545.7,3545.3,0.1408]
[1754274207929,0.9442,3545.6,3545.3,0.1408]
[1754274208131,4.822,3545.5,3545.3,0.1428]
[1754274208533,0.9442,3545.4,3545.3,0.1428]
[1754274210499,5.7572,3545.4,3545.3,0.1428]
[1754274210661,0.9442,3545.4,3545.3,0.1428]
[1754274210993,5.7572,3545.4,3545.3,0.1428]
[1754274211356,5.7562,3545.4,3545.3,0.1428]
[1754274211556,0.9442,3545.4,3545.3,0.1428]
[1754274211853,5.7542,3545.4,3545.3,0.1428]
[1754274214153,5.7442,3545.4,3545.3,0.1428]
[1754274214379,0.001,3545.7,3545.3,0.1428]
[1754274214582,4.8,3545.6,3545.3,2.96337108]
[1754274214785,5.2625,3545.6,3545.3,2.82257108]
[1754274214984,5.7169,3545.6,3545.5,0.1408]
[1754274215761,5.7249,3545.6,3545.5,0.1408]
[1754274216607,0.001,3545.7,3545.6,2.82039711]
[1754274216904,4.809,3545.7,3545.6,2.82039711]
[1754274217684,0.001,3545.7,3545.6,2.82039711]
[1754274217883,4.812,3545.7,3545.6,2.82039711]
[1754274219164,4.809,3545.7,3545.6,2.82039711]
[1754274220208,5.2715,3545.7,3545.6,2.82039711]
[1754274220507,5.7259,3545.7,3545.5,2.96124592]
[1754274220664,0.9169,3545.6,3545.5,2.96124592]
[1754274220867,5.7239,3545.6,3545.5,2.96124592]
[1754274221181,5.2695,3545.6,3545.5,2.96124592]
[1754274221579,4.807,3545.6,3545.5,2.96124592]
[1754274221776,0.001,3545.7,3545.6,2.82039711]
[1754274221982,4.805,3545.7,3545.6,2.82039711]
[1754274222910,4.804,3545.7,3545.6,2.82039711]
[1754274223110,4.804,3545.7,3545.6,3.30299711]
[1754274223263,0.001,3545.7,3545.6,3.30299711]
[1754274223462,4.802,3545.7,3545.6,3.30299711]
[1754274224280,0.001,3545.7,3545.6,2.82039711]
[1754274224483,4.796,3545.7,3545.6,2.82039711]
[1754274225069,0.001,3545.7,3545.6,2.82039711]
[1754274225270,4.793,3545.7,3545.6,3.30299711]
[1754274225591,0.001,3545.7,3545.6,3.30299711]
[1754274225803,4.792,3545.7,3545.6,3.30299711]
[1754274226116,0.001,3545.7,3545.6,2.82039711]
[1754274226269,0.001,3545.7,3545.6,2.84860108]
[1754274226472,0.001,3545.7,3545.6,3.30299711]
[1754274227407,0.001,3545.7,3545.6,3.44379711]
[1754274228286,0.001,3545.7,3545.6,2.96119711]
[1754274230609,0.001,3545.7,3545.6,3.44379711]
[1754274231589,0.001,3545.7,3545.6,3.47200108]
[1754274231814,0.001,3545.7,3545.6,3.44379711]
[1754274234115,0.001,3545.7,3545.6,2.96119711]
[1754274234718,0.001,3545.7,3545.6,3.51119711]
[1754274235219,0.001,3545.7,3545.6,3.99379711]
[1754274236698,0.001,3545.7,3545.6,3.51119711]
[1754274237099,0.001,3545.7,3545.6,3.99379711]
[1754274238586,0.001,3545.7,3545.6,4.45629711]
[1754274239084,0.001,3545.7,3545.6,3.97369711]
[1754274239402,0.3574,3546.0,3545.9,2.82015849]
[1754274239738,3.0,3547.4,3546.1,2.81999943]
[1754274239739,0.4283,3546.2,3546.1,2.81999943]
[1754274240266,0.4283,3546.2,3546.1,2.96079943]
[1754274241367,0.8847,3546.2,3546.1,2.96079943]
[1754274242155,0.4283,3546.2,3546.1,2.96079943]
[1754274242654,5.2373,3546.5,3546.2,2.81990819]
[1754274242815,4.809,3546.5,3546.4,2.81976088]
[1754274243018,4.809,3546.5,3546.4,2.96056088]
[1754274243444,5.6937,3546.5,3546.4,2.96056088]
[1754274243831,5.6917,3546.5,3546.4,0.1408]
[1754274244452,5.6917,3546.5,3545.9,2.82014299]
[1754274244623,0.8847,3546.4,3546.2,0.1408]
[1754274245145,0.8847,3546.3,3546.2,0.1408]
[1754274245453,0.8847,3546.3,3545.5,2.82044583]
[1754274245661,0.8847,3546.2,3545.3,2.82263038]
[1754274245960,0.8847,3546.1,3546.0,0.1408]
[1754274246124,0.1408,3546.7,3545.9,2.82008181]
[1754274246323,5.2433,3546.6,3546.2,0.1408]
[1754274246538,4.815,3546.6,3546.2,0.1408]
[1754274246863,0.8847,3546.5,3546.2,0.1408]
[1754274247239,0.8847,3546.4,3546.2,0.1408]
[1754274247862,0.8847,3546.3,3546.2,0.1408]
[1754274250027,0.8847,3546.3,3546.2,0.0908]
[1754274254765,5.2293,3546.3,3546.2,0.0908]
[1754274254970,5.6857,3546.3,3546.2,0.0908]
[1754274255607,0.1408,3546.7,3546.2,0.0908]
[1754274255738,5.2293,3546.6,3546.2,2.81991991]
[1754274255944,5.2574,3546.6,3546.5,0.1408]
[1754274256651,5.6857,3546.6,3546.5,0.1408]
[1754274258178,0.8847,3546.6,3546.5,0.1408]
[1754274258352,3.0,3547.2,3546.5,2.96047472]
[1754274258353,0.4283,3546.9,3546.5,2.96047472]
[1754274258538,0.4564,3546.8,3546.5,2.96047472]
[1754274258734,5.2203,3546.7,3546.5,2.81967472]
[1754274258939,5.2203,3546.7,3546.1,0.4811]
[1754274259263,5.2203,3546.7,3546.6,0.1408]
[1754274259669,5.6767,3546.7,3546.6,0.1408]
[1754274259875,0.8847,3546.7,3546.6,0.1408]
[1754274260040,5.6757,3546.7,3546.6,0.1408]
[1754274260553,0.8847,3546.7,3546.6,0.1408]
[1754274260875,5.6747,3546.7,3546.6,0.1408]
[1754274261063,0.1408,3547.2,3546.6,0.1408]
[1754274261376,1.18831232,3548.0,3545.7,3.66777193]
[1754274261377,5.6727,3547.1,3546.9,0.1408]
[1754274261879,0.8847,3547.0,3546.9,0.1408]
[1754274262240,0.8857,3547.3,3546.9,0.1408]
[1754274262443,4.786,3547.0,3546.8,2.81939398]
[1754274262851,5.2143,3547.0,3546.8,2.81939398]
[1754274263188,5.2143,3547.0,3546.9,0.1408]
[1754274263338,0.001,3547.3,3546.9,0.1408]
[1754274263686,0.001,3547.3,3547.2,2.81912494]
[1754274263843,4.785,3547.3,3547.2,2.95992494]
[1754274266883,4.782,3547.3,3547.2,3.17615506]
[1754274267090,4.78,3547.3,3547.2,3.17615506]
[1754274267390,0.001,3547.3,3547.2,3.17615506]
[1754274267559,4.78,3547.3,3547.2,3.17615506]
[1754274268083,0.001,3547.3,3547.2,3.17615506]
[1754274268246,4.781,3547.3,3547.2,3.17615506]
[1754274269265,5.2185,3547.3,3547.2,3.17615506]
[1754274269463,5.7148,3547.3,3547.2,0.1408]
[1754274269885,5.7148,3547.3,3546.6,2.81954534]
[1754274270097,0.9338,3547.2,3546.9,0.1408]
[1754274270456,4.781,3547.3,3546.9,0.1408]
[1754274270457,0.9338,3547.1,3546.9,0.1408]
[1754274270662,4.782,3547.0,3546.9,0.1408]
[1754274271056,4.784,3547.0,3546.9,0.1408]
[1754274271264,4.784,3547.0,3546.9,2.96011405]
[1754274271265,4.783,3547.0,3546.9,2.96011405]
[1754274272169,0.9348,3547.3,3546.9,2.96011405]
[1754274272365,5.7168,3547.2,3546.9,2.96011405]
[1754274272669,5.2205,3547.2,3547.1,0.1408]
[1754274272867,0.001,3547.3,3547.2,2.81912494]
[1754274273069,4.788,3547.3,3547.2,2.81912494]
[1754274273401,4.788,3547.3,3547.2,3.86012494]
[1754274273640,0.001,3547.3,3547.2,3.86012494]
[1754274273757,0.001,3547.3,3547.2,6.88831618]
[1754274273959,0.001,3547.3,3547.2,6.86012494]
[1754274274300,0.001,3547.3,3547.2,11.78892494]
[1754274275259,0.001,3547.7,3547.6,3.36880708]
[1754274275659,0.001,3547.7,3547.6,3.85980708]
[1754274276208,0.001,3547.7,3547.6,4.00060708]
[1754274276357,0.001,3547.7,3547.6,2.95960708]
[1754274278205,0.001,3547.7,3547.6,3.45060708]
[1754274278995,0.001,3547.7,3547.6,4.00060708]
[1754274279802,0.001,3547.7,3547.6,3.50960708]
[1754274280297,0.001,3547.7,3547.6,2.95960708]
[1754274280508,0.4385,3547.7,3547.6,2.95960708]
[1754274280678,0.9348,3547.7,3547.6,2.95960708]
[1754274281247,0.4385,3547.7,3547.6,2.95960708]
[1754274281364,0.001,3547.7,3547.6,4.00060708]
[1754274281865,0.001,3547.7,3547.6,3.50960708]
[1754274282302,0.001,3547.7,3547.6,4.00060708]
[1754274286295,0.001,3548.1,3548.0,2.81848928]
[1754274286494,0.9338,3548.9,3548.1,0.55]
[1754274286841,0.9338,3548.9,3548.8,2.81785392]
[1754274286998,0.9338,3548.9,3548.4,2.81813017]
[1754274287200,6.774,3550.3,3548.6,2.81793948]
[1754274287399,0.1408,3549.7,3548.9,2.81775538]
[1754274287611,0.0908,3549.7,3548.7,2.81792024]
[1754274287817,0.5283,3549.7,3548.9,0.55]
[1754274287989,0.5283,3549.7,3549.5,2.81729013]
[1754274287990,0.9338,3549.7,3549.5,2.81729013]
[1754274288344,4.82,3549.8,3549.6,2.95801595]
[1754274288491,0.1408,3550.4,3549.6,2.95801595]
[1754274288887,5.7568,3550.3,3549.9,0.1408]
[1754274289088,23.04062333,3550.9,3549.9,2.81696425]
[1754274289089,0.9338,3550.2,3549.9,2.81696425]
[1754274289339,0.4375,3550.1,3549.2,0.55]
[1754274289542,0.4375,3550.1,3549.9,2.81694098]
[1754274289685,0.4375,3550.1,3550.0,0.1408]
[1754274290151,0.4375,3550.1,3550.0,2.9577014]
[1754274290690,5.2625,3550.3,3550.2,2.81674271]
[1754274290911,5.2625,3550.3,3550.0,2.95769518]
[1754274290912,0.4375,3550.1,3550.0,2.9577014]
[1754274291120,0.4375,3550.1,3550.0,2.8169014]
[1754274291318,0.9338,3550.1,3550.0,2.9577014]
[1754274292284,0.4375,3550.1,3550.0,2.9577014]
[1754274293603,0.9338,3550.1,3550.0,2.9577014]
[1754274294012,4.835,3550.3,3550.1,2.81680367]
[1754274294216,0.9338,3550.2,3550.1,2.81680367]
[1754274294447,0.9338,3550.2,3550.1,2.95760367]
[1754274295092,0.4375,3550.2,3550.1,2.95760367]
[1754274295527,5.3313,3550.4,3550.3,2.81666338]
[1754274296023,0.9338,3550.4,3550.3,2.95746338]
[1754274296925,0.4375,3550.4,3550.3,2.95746338]
[1754274297116,4.828,3550.5,3550.4,2.81658404]
[1754274297422,0.9338,3550.5,3550.3,2.95743617]
[1754274297629,0.9338,3550.5,3550.4,2.81658404]
[1754274297792,0.9338,3550.5,3550.3,0.1408]
[1754274298120,0.4375,3550.4,3550.3,2.95746039]
[1754274300201,0.4375,3550.4,3550.3,0.1408]
[1754274300517,0.9281,3550.4,3550.3,0.1408]
[1754274300945,4.818,3550.4,3550.3,0.1408]
[1754274301107,5.2501,3550.4,3550.3,0.1408]
[1754274301307,5.2501,3550.4,3550.3,2.95746338]
[1754274301727,4.819,3550.7,3550.5,2.81642763]
[1754274301932,0.9227,3550.6,3550.5,2.81642763]
[1754274302237,0.9227,3550.6,3550.5,0.1408]
[1754274306912,5.7457,3550.6,3550.5,0.1408]
[1754274307313,5.7437,3550.6,3550.5,0.1408]
[1754274312848,0.4331,3550.8,3550.5,0.1408]
[1754274313053,4.829,3550.7,3550.5,2.95727531]
[1754274313234,0.4321,3550.6,3550.5,2.95727531]
[1754274313617,5.2511,3550.6,3550.5,2.95727531]
[1754274314141,5.7417,3550.6,3550.5,2.95727531]
[1754274316876,0.9227,3550.6,3550.5,2.95727531]
[1754274317087,5.7237,3550.6,3550.5,2.95727531]
[1754274317382,0.001,3550.8,3550.5,2.95727531]
[1754274317685,0.001,3550.8,3550.7,2.81634607]
[1754274317894,5.2311,3550.8,3550.7,2.81634607]
[1754274318046,5.7217,3550.8,3550.7,2.81634607]
[1754274318512,0.001,3550.8,3550.7,2.95714607]
[1754274318676,4.799,3550.8,3550.7,2.95714607]
[1754274319059,0.001,3550.8,3550.7,2.95714607]
[1754274319288,4.794,3550.8,3550.7,2.95714607]
[1754274319696,5.2261,3550.8,3550.7,2.95714607]
[1754274319990,5.2251,3550.8,3550.7,2.95714607]
[1754274320588,5.2201,3550.8,3550.7,2.95714607]
[1754274320786,4.788,3550.8,3550.7,2.95714607]
[1754274320985,5.2201,3550.8,3550.7,2.95714607]
[1754274321194,5.7107,3550.8,3550.7,0.1408]
[1754274321662,5.7107,3550.8,3550.7,2.95714607]
[1754274322065,5.2201,3550.8,3550.7,2.95714607]
[1754274322656,0.4331,3550.8,3550.7,2.95714607]
[1754274322986,5.2121,3550.8,3550.7,2.95714607]
[1754274323185,5.7027,3550.8,3550.7,2.95714607]
[1754274323686,5.6997,3550.8,3550.7,2.95714607]
[1754274324889,4.777,3550.8,3550.7,2.95714607]
[1754274326089,5.2091,3550.8,3550.7,2.95714607]
[1754274326993,4.777,3550.8,3550.7,2.95714607]
[1754274328500,0.001,3550.8,3550.7,5.95714607]
[1754274328657,0.001,3550.8,3550.7,6.96684607]
[1754274328990,0.4321,3551.9,3551.6,2.81563239]
[1754274329190,5.6846,3551.8,3551.7,2.81554981]
[1754274329558,5.6846,3551.8,3551.7,2.95634981]
[1754274329906,5.6846,3551.8,3551.7,0.1408]
[1754274330670,5.6846,3551.8,3551.2,0.1408]
[1754274330671,5.8254,3551.8,3551.2,0.1408]
[1754274330866,5.238,3551.7,3551.2,0.1408]
[1754274331065,5.6776,3551.7,3551.2,0.1408]
[1754274331308,5.238,3551.7,3551.6,0.1408]
[1754274331669,4.744,3551.7,3551.6,2.95639027]
[1754274331874,4.744,3551.7,3551.6,0.1408]
[1754274332418,4.744,3551.7,3551.6,2.95643239]
[1754274332786,5.1836,3551.7,3551.6,0.1408]
[1754274332986,5.6746,3551.7,3551.6,0.1408]
[1754274334107,5.6746,3551.7,3551.2,2.81593909]
[1754274334108,0.11099443,3552.0,3551.4,2.81576636]
[1754274334281,4.734,3551.9,3551.4,2.81576636]
[1754274334481,4.734,3551.9,3551.5,2.81569352]
[1754274334682,5.1736,3551.9,3551.8,0.1408]
[1754274334887,0.4396,3551.9,3551.8,0.1408]
[1754274335131,5.1696,3551.9,3551.8,0.1408]
[1754274335278,5.6586,3551.9,3551.8,0.1408]
[1754274335693,5.6586,3551.9,3550.3,3.0]
[1754274335694,21.92522333,3551.9,3550.3,3.0]
[1754274335975,0.1408,3551.6,3551.1,0.1408]
[1754274336195,5.6566,3551.5,3551.1,0.1408]
[1754274336383,0.9306,3551.4,3551.1,0.1408]
[1754274336573,0.9306,3551.4,3550.5,2.81650215]
[1754274336775,0.9306,3551.3,3550.9,0.1408]
[1754274336970,4.723,3551.2,3550.9,0.1408]
[1754274337171,4.723,3551.2,3551.0,2.81610508]
[1754274337420,4.722,3551.1,3551.0,3.29560813]
[1754274337623,4.722,3551.2,3551.1,2.95675483]
[1754274337827,4.722,3551.2,3551.1,2.81595483]
[1754274337996,4.722,3551.2,3551.1,3.29545483]
[1754274338526,0.4396,3551.6,3551.3,2.81585966]
[1754274338821,4.72,3551.3,3551.2,2.81592585]
[1754274339020,4.72,3551.3,3551.2,2.81594953]
[1754274339322,4.72,3551.3,3551.2,0.1408]
[1754274339323,5.6506,3551.3,3551.2,0.1408]
[1754274339520,4.72,3551.3,3551.2,0.1408]
[1754274340196,4.72,3551.3,3551.2,2.95674953]
[1754274340390,4.709,3551.4,3551.2,0.6203]
[1754274340596,4.709,3551.4,3551.3,3.29530378]
[1754274341321,0.11099443,3552.0,3551.4,2.81579095]
[1754274341525,0.11099443,3552.0,3551.9,3.36539457]
[1754274342003,0.11099443,3552.0,3551.9,3.98569457]
[1754274342213,16.26662333,3553.9,3551.9,3.98569457]
[1754274342214,0.9306,3553.4,3552.2,0.55]
[1754274342440,4.709,3553.3,3553.0,2.81446679]
[1754274342739,4.709,3553.3,3553.1,2.81443137]
[1754274343036,4.709,3553.3,3552.9,2.81453285]
[1754274343037,0.9306,3553.2,3552.9,2.81453285]
[1754274343331,0.9306,3553.1,3552.9,2.81453285]
[1754274343537,0.9306,3553.0,3552.6,2.81483506]
[1754274343836,3.0,3553.7,3552.5,2.81491243]
[1754274343837,0.9306,3552.9,3552.5,2.81491243]
[1754274344034,4.704,3553.1,3552.5,2.81491243]
[1754274344343,5.195,3553.1,3552.6,2.84296525]
[1754274344634,0.4396,3553.0,3552.6,0.20948185]
[1754274344837,4.704,3553.1,3552.6,0.20948185]
[1754274344838,4.704,3553.1,3552.8,2.81461562]
[1754274344994,0.4396,3553.4,3552.9,2.81460215]
[1754274345217,4.698,3553.3,3552.9,2.81460215]
[1754274345454,4.698,3553.3,3552.8,3.29415761]
[1754274345639,5.6286,3553.3,3552.8,3.29415761]
[1754274345827,5.189,3553.3,3552.8,2.81465761]
[1754274346159,0.4396,3553.2,3552.6,0.4795]
[1754274346386,0.9306,3553.2,3552.6,3.02577589]
[1754274346512,0.491,3553.1,3552.6,3.02577589]
[1754274346851,0.9306,3553.1,3552.7,2.81472524]
[1754274347015,5.6286,3553.3,3552.7,2.81472524]
[1754274347211,4.698,3553.3,3552.7,2.81472524]
[1754274347447,4.691,3553.3,3552.6,0.55]
[1754274347616,4.691,3553.3,3553.0,2.81446917]
[1754274348257,4.691,3553.3,3553.1,2.81443588]
[1754274348455,5.1306,3553.3,3553.0,2.81450557]
[1754274348665,5.6216,3553.3,3553.0,2.81450557]
[1754274348894,5.1306,3553.3,3553.0,2.81450557]
[1754274349062,4.691,3553.3,3553.0,2.81450557]
[1754274349375,0.4396,3553.2,3553.0,2.81450557]
[1754274350135,4.691,3553.3,3552.9,2.81460215]
[1754274350330,4.691,3553.3,3553.0,2.81446824]
[1754274350558,5.6216,3553.3,3553.0,2.81446824]
[1754274350921,0.9306,3553.2,3552.6,0.20831923]
[1754274351115,0.9306,3553.2,3552.4,0.4795]
[1754274351116,0.9306,3553.2,3552.9,2.81455011]
[1754274351433,0.9306,3553.2,3553.1,0.1408]
[1754274354521,0.1408,3553.6,3553.1,0.1408]
[1754274354723,0.1408,3553.6,3553.2,2.8142918]
[1754274354724,4.666,3553.6,3553.2,2.8142918]
[1754274354959,4.666,3553.6,3553.3,2.81426702]
[1754274355125,5.1056,3553.6,3553.3,2.81426702]
[1754274355327,5.5966,3553.6,3553.3,2.81426702]
[1754274355659,4.666,3553.5,3552.9,0.4795]
[1754274355855,5.5966,3553.5,3553.1,2.81443123]
[1754274356158,0.001,3553.7,3552.5,2.81485938]
[1754274356159,5.5966,3553.4,3552.5,2.81491907]
[1754274356483,0.001,3553.7,3552.5,2.81491907]
[1754274356484,0.001,3553.7,3553.6,2.81404772]
[1754274356847,0.001,3553.7,3553.6,3.36404772]
[1754274357054,0.001,3553.7,3553.6,3.84354772]
[1754274357750,0.001,3553.7,3553.6,4.05035854]
[1754274358689,0.001,3553.7,3553.6,4.19115854]
[1754274359390,0.001,3553.7,3553.6,8.69995854]
[1754274359678,0.001,3553.7,3553.6,8.84075854]
[1754274360212,0.001,3553.7,3553.6,3.02085854]
[1754274360378,0.9406,3553.7,3553.6,0.20681082]
[1754274360910,0.9406,3553.7,3553.5,2.81407315]
[1754274361257,0.9406,3553.7,3553.6,2.81404772]
[1754274361455,0.442,3553.7,3553.6,3.0258893]
[1754274361661,0.001,3553.7,3553.6,3.0258893]
[1754274361907,0.9406,3553.7,3553.6,0.21184158]
[1754274362198,0.9406,3553.7,3553.5,2.814126]
[1754274362406,0.9396,3553.6,3553.4,2.81418584]
[1754274362605,0.9396,3553.5,3553.4,2.81418584]
[1754274362764,0.001,3553.7,3553.6,2.81404772]
[1754274363167,0.001,3553.7,3553.6,3.27814772]
[1754274364065,0.001,3553.7,3553.4,3.02185818]
[1754274364066,0.9406,3553.7,3553.4,0.20767234]
[1754274364404,0.4996,3553.7,3553.6,2.81404772]
[1754274364775,0.442,3553.7,3553.6,0.1408]
[1754274364977,0.9406,3553.7,3553.6,0.1408]
[1754274365378,0.9406,3553.7,3553.6,3.1408]
[1754274365673,0.9406,3553.7,3553.6,0.1408]
[1754274365874,0.9406,3553.7,3553.6,3.1408]
[1754274366400,0.9406,3553.7,3553.6,2.95484772]
[1754274367366,0.9406,3553.7,3553.6,0.1408]
[1754274367901,0.9406,3553.7,3553.3,0.1408]
[1754274368102,0.9396,3553.6,3553.3,0.1408]
[1754274368492,0.9396,3553.5,3553.3,0.1408]
[1754274368670,0.9396,3553.4,3552.8,2.81466227]
[1754274368864,0.9396,3553.3,3553.1,0.1408]
[1754274369064,0.9396,3553.2,3553.1,0.1408]
[1754274369301,0.9396,3553.2,3553.0,0.1408]
[1754274369603,0.9396,3553.1,3553.0,0.1408]
[1754274369968,0.1408,3553.6,3553.0,0.1408]
[1754274370276,0.001,3553.7,3553.6,2.81404772]
[1754274372937,0.9406,3553.7,3553.6,2.81404772]
[1754274373801,0.9406,3553.7,3553.4,2.81419623]
[1754274373802,0.9406,3553.7,3552.9,3.55]
[1754274374223,0.9406,3553.7,3553.5,2.81406117]
[1754274374419,0.9406,3553.7,3553.6,2.81404772]
[1754274374619,0.442,3553.7,3553.6,2.81404772]
[1754274374935,0.001,3553.7,3553.6,2.81404772]
[1754274375553,0.001,3553.7,3553.5,2.81409917]
[1754274375754,0.441,3554.8,3553.4,3.4641]
[1754274375955,0.9396,3554.6,3554.4,2.81340405]
[1754274376161,0.9396,3554.5,3554.4,2.81341435]
[1754274376715,0.9396,3554.5,3554.4,0.2107607]
[1754274376911,0.9396,3554.5,3554.4,2.81341435]
[1754274377118,0.441,3554.5,3554.4,2.81341435]
[1754274377318,0.9396,3554.8,3554.6,2.813248]
[1754274377547,4.662,3555.1,3554.5,2.81332046]
[1754274377733,0.9396,3554.7,3554.6,2.81325606]
[1754274378131,0.11099443,3555.8,3553.8,2.81383352]
[1754274378338,0.9396,3554.9,3554.7,2.81313984]
[1754274378648,0.9396,3554.8,3554.6,2.81324747]
[1754274379262,0.9396,3554.7,3554.3,2.8134233]
[1754274379414,0.441,3554.6,3553.9,3.55]
[1754274379622,0.9396,3554.6,3554.4,2.81334407]
[1754274379818,0.9396,3554.6,3554.5,2.8133352]
[1754274380222,0.9396,3554.6,3554.5,2.9541352]
[1754274381370,0.441,3554.6,3554.5,0.1408]
[1754274381528,0.9396,3554.6,3554.5,0.1408]
[1754274382551,0.9396,3554.6,3554.5,2.9541352]
[1754274384168,0.1408,3555.2,3554.5,0.1408]
[1754274384375,0.9396,3555.3,3555.1,2.81278619]
[1754274384554,0.9396,3555.3,3554.5,0.6049]
[1754274384555,0.9396,3555.3,3555.2,2.81278127]
[1754274385048,0.9396,3555.3,3554.5,0.4641]
[1754274385248,4.661,3555.6,3555.2,0.1408]
[1754274385467,4.661,3555.6,3555.2,2.95355606]
[1754274385625,4.661,3555.6,3555.5,2.81254394]
[1754274385626,4.66,3555.6,3555.5,2.81254394]
[1754274385825,4.66,3555.6,3554.5,0.55]
[1754274385826,5.5996,3555.6,3554.9,0.4641]
[1754274386070,5.5996,3555.6,3555.2,2.81272201]
[1754274386235,0.9396,3555.5,3555.2,2.81272201]
[1754274386440,4.66,3555.6,3555.2,2.81272201]
[1754274386730,0.9396,3555.4,3555.2,2.81272201]
[1754274387031,0.4986,3555.5,3554.7,3.27727692]
[1754274387265,0.441,3555.6,3555.4,2.81262305]
[1754274387474,0.441,3555.6,3554.9,3.0]
[1754274387627,0.9396,3555.5,3555.2,3.0]
[1754274387963,0.9396,3555.5,3555.2,2.81275476]
[1754274388128,0.441,3555.4,3555.3,2.81269858]
[1754274388868,0.11099443,3555.8,3555.6,2.81244208]
[1754274389165,0.11099443,3555.8,3554.9,7.61278234]
[1754274389166,0.11099443,3555.8,3555.5,2.81248296]
[1754274389330,0.9004,3555.7,3555.5,2.81248296]
[1754274389828,0.11099443,3555.8,3555.0,3.0]
[1754274389829,0.9004,3555.6,3555.0,3.0]
[1754274390024,0.9004,3555.5,3554.3,3.0]
[1754274390261,0.9004,3555.4,3554.3,3.0]
[1754274390462,0.9004,3555.3,3554.8,2.81309437]
[1754274390698,0.11099443,3555.8,3554.8,2.81309437]
[1754274390699,0.9004,3555.2,3554.8,3.0]
[1754274390879,0.11099443,3555.8,3554.1,3.02066654]
[1754274390880,7.76899443,3555.8,3554.3,2.81341917]
[1754274391070,0.9004,3555.1,3554.3,2.8134292]
[1754274391268,7.76899443,3555.8,3554.0,2.813731]
[1754274391269,0.4592,3555.0,3554.2,2.81354413]
[1754274391450,0.4592,3555.0,3553.9,2.81378175]
[1754274391451,0.9004,3555.0,3553.9,2.81378175]
[1754274391656,0.9004,3555.0,3551.7,9.85547917]
[1754274391657,0.9004,3554.9,3553.7,2.81390851]
[1754274391894,0.9004,3554.8,3553.8,2.8138815]
[1754274392155,5.81246484,3555.6,3553.7,5.8139572]
[1754274392156,0.9004,3554.7,3553.7,5.8139572]
[1754274392388,0.9004,3554.6,3553.4,0.4848]
[1754274392594,4.657,3554.9,3553.4,4.657]
[1754274392595,0.9004,3554.5,3553.4,4.657]
[1754274392894,0.9004,3554.4,3553.6,2.81401835]